bitfinex/quotes_SOLUSD_20230104
["timestamp","ask_amount","ask_price","bid_price","bid_amount"]
[1672850290836,55.21,13.597,13.58,206.75556953]
[1672850291059,20.0,13.596,13.581,21.7811836]
[1672850291673,20.0,13.598,13.581,21.7811836]
[1672850291883,55.21,13.597,13.582,49.11719213]
[1672850292105,20.0,13.596,13.581,88.94339811]
[1672850292413,20.0,13.596,13.583,21.7811836]
[1672850292622,20.0,13.598,13.583,21.7811836]
[1672850293039,20.0,13.598,13.579,55.28]
[1672850293253,29.461925,13.6,13.583,48.6367757]
[1672850293464,29.461925,13.6,13.584,75.26]
[1672850293669,29.461925,13.6,13.584,97.0411836]
[1672850293884,29.461925,13.6,13.585,48.6367757]
[1672850294086,29.461925,13.6,13.586,75.25]
[1672850294296,29.461925,13.6,13.586,97.0311836]
[1672850294512,60.09707356,13.599,13.581,55.27]
[1672850294840,75.2,13.599,13.582,21.7811836]
[1672850295056,4.89707356,13.598,13.582,21.7811836]
[1672850295263,55.21,13.597,13.58,118.7162]
[1672850295484,20.0,13.596,13.58,118.7162]
[1672850296109,20.0,13.598,13.58,118.7162]
[1672850296323,55.21,13.597,13.58,118.7162]
[1672850296640,20.0,13.596,13.58,118.7162]
[1672850298194,24.89707356,13.598,13.58,118.7162]
[1672850298610,4.89707356,13.597,13.58,118.7162]
[1672850299046,24.89707356,13.597,13.58,118.7162]
[1672850299252,80.10707356,13.597,13.579,55.28]
[1672850299467,4.89707356,13.596,13.578,116.7273]
[1672850299671,60.10707356,13.596,13.578,116.7273]
[1672850299866,20.0,13.595,13.578,116.7273]
[1672850300081,24.89707356,13.595,13.578,116.7273]
[1672850300504,4.89707356,13.594,13.579,55.28]
[1672850301024,4.89707356,13.594,13.578,116.7273]
[1672850302397,20.0,13.596,13.579,55.28]
[1672850302608,24.89707356,13.596,13.579,55.28]
[1672850302829,4.89707356,13.596,13.579,55.28]
[1672850303571,20.0,13.598,13.58,22.25]
[1672850303770,20.0,13.599,13.581,55.27]
[1672850304502,170.10779856,13.6,13.582,20.0]
[1672850304725,51.631925,13.6,13.583,55.26]
[1672850304922,51.631925,13.6,13.584,20.0]
[1672850305137,51.631925,13.6,13.585,171.1339]
[1672850305440,51.631925,13.6,13.586,20.0]
[1672850305665,51.631925,13.6,13.587,55.25]
[1672850306406,4.89707356,13.599,13.581,55.27]
[1672850306602,4.89707356,13.599,13.58,108.6502]
[1672850306603,55.2,13.598,13.58,108.6502]
[1672850307027,4.89707356,13.597,13.58,108.6502]
[1672850307256,24.89707356,13.597,13.58,108.6502]
[1672850307468,4.89707356,13.597,13.58,108.6502]
[1672850307688,4.89707356,13.596,13.58,108.6502]
[1672850308215,24.89707356,13.596,13.58,108.6502]
[1672850308633,20.0,13.595,13.58,108.6502]
[1672850309455,4.89707356,13.596,13.58,108.6502]
[1672850310008,24.89707356,13.596,13.58,108.6502]
[1672850310308,4.89707356,13.595,13.58,108.6502]
[1672850310521,24.89707356,13.595,13.58,108.6502]
[1672850310721,24.89707356,13.595,13.579,108.7355]
[1672850310921,22.2,13.59,13.579,108.7355]
[1672850319225,22.2,13.59,13.58,55.27]
[1672850319451,4.90951028,13.594,13.58,55.27]
[1672850319649,4.90951028,13.594,13.579,108.7355]
[1672850319857,21.98,13.59,13.574,55.3]
[1672850320197,80.14951028,13.589,13.567,165.2528]
[1672850320501,75.24,13.589,13.567,165.2528]
[1672850322181,60.00249801,13.588,13.567,165.2528]
[1672850322403,20.0,13.587,13.567,165.2528]
[1672850322607,80.00249801,13.587,13.567,165.2528]
[1672850322931,60.00249801,13.586,13.567,165.2528]
[1672850323245,60.00249801,13.585,13.567,165.2528]
[1672850323646,60.00249801,13.584,13.567,165.2528]
[1672850324081,55.09298773,13.583,13.567,165.2528]
[1672850325348,60.00249801,13.583,13.567,165.2528]
[1672850325749,4.90951028,13.583,13.567,165.2528]
[1672850325964,165.3681,13.586,13.567,165.2528]
[1672850326195,4.90951028,13.585,13.567,165.2528]
[1672850329970,22.14,13.58,13.567,165.2528]
[1672850330161,22.14,13.58,13.567,109.9228]
[1672850330371,22.14,13.58,13.567,165.2528]
[1672850333977,110.92,13.58,13.566,116.2194]
[1672850334285,24.90951028,13.579,13.566,116.2194]
[1672850334475,24.90951028,13.579,13.56,170.7407]
[1672850334691,4.90951028,13.578,13.56,170.7407]
[1672850336913,190.3233,13.579,13.56,170.7407]
[1672850337534,4.90951028,13.578,13.56,170.7407]
[1672850338784,22.2,13.57,13.56,115.3807]
[1672850341102,55.28,13.578,13.56,115.3807]
[1672850341307,20.0,13.577,13.56,115.3807]
[1672850341538,20.0,13.577,13.56,170.7407]
[1672850341746,4.90951028,13.576,13.56,170.7407]
[1672850342379,4.90951028,13.576,13.56,115.3807]
[1672850343839,60.19951028,13.576,13.56,115.3807]
[1672850344172,4.90951028,13.575,13.56,115.3807]
[1672850347637,316.90951028,13.575,13.56,115.3807]
[1672850349008,22.2,13.57,13.56,115.3807]
[1672850352150,22.2,13.57,13.553,55.38]
[1672850352368,22.2,13.57,13.554,136.3056]
[1672850352578,22.28,13.57,13.555,55.38]
[1672850352785,22.28,13.57,13.556,20.0]
[1672850354578,22.28,13.57,13.557,55.37]
[1672850355929,334.28,13.57,13.557,55.37]
[1672850356158,334.28,13.57,13.556,20.0]
[1672850356358,339.18951028,13.57,13.556,20.0]
[1672850356908,339.18951028,13.57,13.555,20.0]
[1672850357091,339.18951028,13.57,13.555,75.38]
[1672850357540,339.18951028,13.57,13.555,20.0]
[1672850357743,339.18951028,13.57,13.555,75.38]
[1672850359729,339.18951028,13.57,13.555,20.0]
[1672850359936,428.07951028,13.57,13.555,20.0]
[1672850360874,428.07951028,13.57,13.555,75.38]
[1672850361185,428.07951028,13.57,13.555,20.0]
[1672850362881,428.07951028,13.57,13.555,75.38]
[1672850364032,116.07951028,13.57,13.555,75.38]
[1672850364359,26.96951028,13.57,13.555,75.38]
[1672850365623,26.96951028,13.57,13.555,20.0]
[1672850367732,22.06,13.57,13.555,20.0]
[1672850367943,22.06,13.57,13.555,75.38]
[1672850369313,22.27,13.57,13.555,75.38]
[1672850371075,55.29,13.576,13.555,75.38]
[1672850371293,55.29,13.576,13.556,37.71487859]
[1672850371518,20.0,13.575,13.557,75.37]
[1672850372248,20.0,13.577,13.557,75.37]
[1672850372440,55.29,13.576,13.557,75.37]
[1672850372651,20.0,13.575,13.557,113.08487859]
[1672850373722,20.0,13.577,13.557,113.08487859]
[1672850374041,55.29,13.576,13.557,113.08487859]
[1672850374253,20.0,13.575,13.557,113.08487859]
[1672850374558,20.0,13.577,13.557,113.08487859]
[1672850374752,20.0,13.577,13.557,154.36828187]
[1672850374968,20.0,13.578,13.557,154.36828187]
[1672850376661,55.24,13.589,13.56,111.08]
[1672850376852,4.90951028,13.583,13.561,172.0704]
[1672850377062,20.0,13.586,13.562,20.0]
[1672850377299,24.90951028,13.586,13.563,55.34]
[1672850377482,24.90951028,13.586,13.564,20.0]
[1672850377691,24.90951028,13.586,13.565,55.34]
[1672850377692,20.0,13.586,13.565,55.34]
[1672850378008,20.0,13.586,13.566,137.7292]
[1672850378234,20.0,13.586,13.567,55.33]
[1672850378444,20.0,13.586,13.567,234.2335752]
[1672850378637,20.0,13.586,13.567,328.68784049]
[1672850378848,20.0,13.586,13.568,157.62974049]
[1672850379062,4.90951028,13.587,13.57,22.08]
[1672850379283,55.21,13.596,13.571,75.31]
[1672850379495,4.90951028,13.593,13.571,75.31]
[1672850379705,316.90951028,13.593,13.572,94.08386305]
[1672850379906,372.12951028,13.593,13.573,55.3]
[1672850380238,22.11,13.59,13.573,287.6316]
[1672850380645,4.90951028,13.589,13.573,287.6316]
[1672850381087,24.90951028,13.589,13.573,287.6316]
[1672850381483,4.90951028,13.588,13.573,287.6316]
[1672850381690,24.90951028,13.588,13.573,287.6316]
[1672850382113,4.90951028,13.587,13.573,287.6316]
[1672850382344,120.65701028,13.587,13.573,287.6316]
[1672850382551,20.0,13.586,13.573,287.6316]
[1672850382769,24.90951028,13.586,13.573,287.6316]
[1672850382968,24.90951028,13.586,13.573,232.3316]
[1672850383388,4.90951028,13.585,13.573,232.3316]
[1672850389281,20.0,13.586,13.573,232.3316]
[1672850389485,20.0,13.586,13.574,55.3]
[1672850390839,20.0,13.586,13.573,232.3316]
[1672850391470,20.0,13.586,13.574,55.3]
[1672850391899,24.90951028,13.586,13.574,55.3]
[1672850396751,24.90951028,13.586,13.573,232.3316]
[1672850401693,24.90951028,13.586,13.574,55.3]
[1672850403570,24.90951028,13.586,13.573,232.3316]
[1672850406828,20.0,13.586,13.573,232.3316]
[1672850407351,20.0,13.586,13.574,55.3]
[1672850407767,24.89778314,13.586,13.574,55.3]
[1672850409055,24.89778314,13.586,13.573,232.3316]
[1672850410714,20.0,13.586,13.574,55.3]
[1672850411368,183.081925,13.6,13.574,55.3]
[1672850411578,71.961925,13.6,13.58,22.08]
[1672850411888,71.961925,13.6,13.581,170.909]
[1672850412096,71.961925,13.6,13.581,192.6901836]
[1672850412097,60.09778314,13.599,13.581,192.6901836]
[1672850412305,60.09778314,13.599,13.581,170.909]
[1672850412521,4.89778314,13.598,13.581,192.6901836]
[1672850412718,4.89778314,13.598,13.581,237.62768068]
[1672850413157,4.89778314,13.598,13.581,192.6901836]
[1672850413356,4.89778314,13.598,13.581,170.909]
[1672850414313,118.5602,13.599,13.582,21.7811836]
[1672850414620,118.5602,13.599,13.581,215.84649708]
[1672850414621,4.89778314,13.598,13.583,55.26]
[1672850414819,71.961925,13.6,13.583,44.93749708]
[1672850415027,71.961925,13.6,13.584,97.0411836]
[1672850415240,71.961925,13.6,13.584,146.46083955]
[1672850415656,71.961925,13.6,13.584,124.67965595]
[1672850415861,94.121925,13.6,13.584,75.26]
[1672850416084,94.101925,13.6,13.584,75.26]
[1672850416827,94.101925,13.6,13.584,55.26]
[1672850417143,243.00970814,13.6,13.582,55.27]
[1672850417761,71.961925,13.6,13.583,21.7811836]
[1672850417978,71.961925,13.6,13.584,55.26]
[1672850418397,71.961925,13.6,13.585,21.7811836]
[1672850418632,71.961925,13.6,13.586,55.25]
[1672850419032,71.961925,13.6,13.587,20.0]
[1672850419235,71.961925,13.6,13.588,55.24]
[1672850421153,431.8937,13.608,13.588,55.24]
[1672850421154,1.5,13.608,13.589,41.7811836]
[1672850421458,1.5,13.608,13.59,77.0111836]
[1672850421649,1.5,13.608,13.591,20.0]
[1672850421861,1.5,13.608,13.592,55.23]
[1672850422187,30.950579,13.608,13.593,20.0]
[1672850422391,30.950579,13.608,13.594,55.22]
[1672850422592,30.950579,13.608,13.595,20.0]
[1672850423451,30.950579,13.608,13.596,55.21]
[1672850423667,30.950579,13.608,13.597,20.0]
[1672850423852,30.950579,13.608,13.597,41.7811836]
[1672850424066,30.950579,13.608,13.597,20.0]
[1672850424277,30.950579,13.608,13.596,20.0]
[1672850424484,30.950579,13.608,13.595,20.0]
[1672850425869,30.950579,13.608,13.596,21.7811836]
[1672850426075,30.950579,13.608,13.597,75.21]
[1672850426280,30.950579,13.608,13.597,20.0]
[1672850426607,28.450579,13.608,13.597,20.0]
[1672850426812,28.450579,13.608,13.596,20.0]
[1672850427339,28.450579,13.608,13.596,41.7811836]
[1672850427551,28.450579,13.608,13.596,20.0]
[1672850427767,28.450579,13.608,13.595,20.0]
[1672850428377,28.450579,13.608,13.595,75.21]
[1672850428586,28.450579,13.608,13.595,20.0]
[1672850429018,28.450579,13.608,13.595,41.7811836]
[1672850429551,28.450579,13.608,13.596,55.21]
[1672850429865,28.450579,13.608,13.596,76.9911836]
[1672850430274,28.450579,13.608,13.596,55.21]
[1672850431743,28.450579,13.608,13.596,76.9911836]
[1672850433018,28.450579,13.608,13.596,21.7811836]
[1672850436388,28.450579,13.608,13.597,55.21]
[1672850436913,28.450579,13.608,13.597,76.9911836]
[1672850437122,28.450579,13.608,13.596,55.21]
[1672850438159,28.450579,13.608,13.595,75.21]
[1672850439208,138.24761549,13.638,13.6,332.38]
[1672850439414,108.6189,13.639,13.601,469.19]
[1672850439629,74.79223405,13.635,13.601,529.82525703]
[1672850439833,55.06,13.634,13.602,76.22855998]
[1672850440075,55.05,13.635,13.603,75.18]
[1672850440265,55.05,13.635,13.603,151.40855998]
[1672850440590,55.05,13.635,13.61,110.96]
[1672850440805,55.05,13.635,13.611,75.15]
[1672850441115,55.05,13.635,13.611,96.9311836]
[1672850441432,55.05,13.635,13.612,84.97680592]
[1672850441625,55.05,13.635,13.613,75.14]
[1672850441834,59.67040341,13.635,13.613,171.62655318]
[1672850442170,110.84,13.63,13.614,96.48655318]
[1672850442370,170.6509,13.629,13.605,55.17]
[1672850442568,120.19130341,13.629,13.61,21.99]
[1672850442900,312.0,13.635,13.611,76.9311836]
[1672850443117,59.68040341,13.634,13.611,76.9311836]
[1672850443318,59.68040341,13.634,13.611,55.15]
[1672850443525,4.62040341,13.633,13.611,55.15]
[1672850443738,22.06,13.63,13.611,55.15]
[1672850443953,119.56,13.629,13.612,20.0]
[1672850444163,124.18040341,13.629,13.613,55.14]
[1672850444367,124.18040341,13.629,13.614,20.0]
[1672850444586,79.70040341,13.628,13.608,55.16]
[1672850444784,79.70040341,13.628,13.606,117.4679]
[1672850444993,121.62450341,13.627,13.607,55.16]
[1672850445313,22.02,13.62,13.603,55.18]
[1672850445517,22.02,13.62,13.603,116.8477]
[1672850445727,55.12,13.619,13.603,116.8477]
[1672850446142,4.62040341,13.619,13.603,116.8477]
[1672850446986,4.62040341,13.619,13.604,55.18]
[1672850447295,4.62040341,13.619,13.601,55.19]
[1672850447507,55.12,13.618,13.596,172.0577]
[1672850447721,20.0,13.617,13.596,172.0577]
[1672850447943,4.62040341,13.617,13.596,435.3577]
[1672850448151,22.01,13.62,13.596,435.3577]
[1672850448366,4.62040341,13.619,13.596,435.3577]
[1672850448566,24.62040341,13.619,13.596,172.0577]
[1672850448898,59.74040341,13.618,13.596,172.0577]
[1672850449087,20.0,13.617,13.596,172.0577]
[1672850449295,24.62040341,13.617,13.596,172.0577]
[1672850449519,4.62040341,13.616,13.596,172.0577]
[1672850449953,118.6839,13.615,13.596,172.0577]
[1672850450364,123.30430341,13.615,13.596,172.0577]
[1672850451820,123.30430341,13.615,13.596,193.8388836]
[1672850452240,118.6839,13.615,13.596,193.8388836]
[1672850455725,123.30430341,13.615,13.596,172.0577]
[1672850458874,118.6839,13.615,13.596,172.0577]
[1672850459399,4.62040341,13.614,13.596,172.0577]
[1672850463587,118.6839,13.615,13.596,193.8388836]
[1672850463905,123.30430341,13.615,13.596,193.8388836]
[1672850464947,118.6839,13.615,13.596,193.8388836]
[1672850465154,118.6839,13.615,13.597,41.08225334]
[1672850465368,118.6839,13.615,13.598,55.2]
[1672850465601,118.6839,13.615,13.598,76.9811836]
[1672850465822,118.6839,13.615,13.599,62.86343694]
[1672850466123,118.6839,13.615,13.6,55.19]
[1672850466632,118.6839,13.615,13.598,55.2]
[1672850467275,123.30430341,13.615,13.598,55.2]
[1672850467803,21.93,13.61,13.596,116.8477]
[1672850469369,55.14,13.614,13.596,116.8477]
[1672850469904,4.62040341,13.613,13.596,116.8477]
[1672850470943,4.62040341,13.613,13.597,55.21]
[1672850472627,118.6839,13.615,13.597,55.21]
[1672850472835,4.51966588,13.614,13.597,55.21]
[1672850475777,59.65966588,13.614,13.596,116.8477]
[1672850476229,4.51966588,13.613,13.597,55.21]
[1672850476945,4.51966588,13.613,13.596,116.8477]
[1672850477159,22.14,13.61,13.596,116.8477]
[1672850477562,4.51966588,13.609,13.596,116.8477]
[1672850477980,108.3016,13.608,13.596,116.8477]
[1672850478188,108.3016,13.608,13.588,55.24]
[1672850478404,133.87766588,13.607,13.589,5.23974998]
[1672850478623,133.87766588,13.607,13.59,55.23]
[1672850478831,22.14,13.6,13.591,5.23897886]
[1672850479046,22.14,13.6,13.591,5.23859339]
[1672850479259,22.14,13.6,13.589,5.23859339]
[1672850479580,26.65966588,13.6,13.589,5.23859339]
[1672850479887,22.14,13.6,13.589,5.23859339]
[1672850480103,22.14,13.6,13.59,2.09543735]
[1672850480316,22.14,13.6,13.584,55.26]
[1672850480526,20.0,13.599,13.585,5.2412929]
[1672850480848,20.0,13.599,13.585,5.24090708]
[1672850481167,20.0,13.599,13.586,5.24090708]
[1672850481369,20.0,13.599,13.587,5.24052133]
[1672850481576,20.0,13.599,13.588,2.09620853]
[1672850481796,24.51966588,13.599,13.577,55.29]
[1672850481996,24.51966588,13.599,13.574,147.06448368]
[1672850481997,55.2,13.598,13.578,5.2439952]
[1672850482322,20.0,13.597,13.579,55.28]
[1672850482508,20.0,13.597,13.58,5.24322282]
[1672850482718,20.0,13.597,13.581,55.27]
[1672850482926,20.0,13.598,13.582,5.24245068]
[1672850483156,20.0,13.598,13.582,5.2420647]
[1672850483351,20.0,13.599,13.583,44.91863794]
[1672850483568,20.0,13.599,13.584,5.24167877]
[1672850483883,20.0,13.599,13.585,44.91863794]
[1672850484090,20.0,13.599,13.586,5.24090708]
[1672850484303,4.51966588,13.598,13.586,5.24052133]
[1672850484510,4.51966588,13.598,13.581,44.08143473]
[1672850484723,4.51966588,13.598,13.579,55.28]
[1672850484935,4.51966588,13.598,13.58,5.24322282]
[1672850485145,59.71966588,13.598,13.581,55.27]
[1672850485367,20.0,13.597,13.582,5.24245068]
[1672850485555,24.52720187,13.597,13.582,5.2420647]
[1672850485771,24.52720187,13.597,13.58,5.2420647]
[1672850485983,4.52720187,13.597,13.581,55.27]
[1672850486211,4.52720187,13.597,13.582,5.24245068]
[1672850486613,4.52720187,13.597,13.579,60.5220647]
[1672850486825,4.52720187,13.597,13.579,104.60349943]
[1672850487037,4.52720187,13.597,13.579,126.38468303]
[1672850489788,4.52720187,13.597,13.579,60.5220647]
[1672850489994,55.21,13.596,13.579,5.2420647]
[1672850490399,4.52720187,13.595,13.579,5.2420647]
[1672850490601,55.22,13.594,13.576,5.24322282]
[1672850490827,283.26,13.594,13.577,55.29]
[1672850491271,109.679,13.594,13.578,44.39452456]
[1672850491457,109.679,13.594,13.579,60.52360898]
[1672850491668,113.8485,13.601,13.58,47.38322282]
[1672850491889,113.8485,13.601,13.581,60.51283673]
[1672850492097,113.8485,13.601,13.582,25.24245068]
[1672850492319,113.8485,13.601,13.583,60.5020647]
[1672850492497,113.8485,13.601,13.584,25.24167877]
[1672850492707,113.8485,13.601,13.585,60.4912929]
[1672850492919,113.8485,13.601,13.586,25.24090708]
[1672850493246,113.8485,13.601,13.587,178.89412133]
[1672850493446,21.96,13.6,13.588,5.24013563]
[1672850493668,21.96,13.6,13.588,5.23974998]
[1672850494086,25.98720187,13.6,13.588,5.23974998]
[1672850494620,20.0,13.599,13.587,4.85615001]
[1672850494816,55.2,13.598,13.582,5.24013563]
[1672850495027,20.0,13.597,13.576,21.7811836]
[1672850495239,20.0,13.597,13.577,55.29]
[1672850495240,24.52720187,13.597,13.577,55.29]
[1672850495446,4.52720187,13.596,13.577,55.29]
[1672850495655,4.52720187,13.596,13.578,5.2439952]
[1672850495870,20.0,13.597,13.579,55.28]
[1672850496091,20.0,13.597,13.58,5.24322282]
[1672850496291,59.73720187,13.596,13.58,5.24283673]
[1672850498827,113.2529,13.594,13.581,5.24245068]
[1672850499045,117.78010187,13.594,13.581,5.24245068]
[1672850499357,55.22,13.593,13.581,5.24245068]
[1672850499764,117.78010187,13.594,13.581,5.24245068]
[1672850500816,113.2529,13.594,13.581,5.24245068]
[1672850501539,117.78010187,13.594,13.581,5.24245068]
[1672850501970,55.22,13.593,13.581,5.24245068]
[1672850502393,59.74720187,13.593,13.581,5.24245068]
[1672850505969,55.22,13.593,13.581,5.24245068]
[1672850507335,59.74720187,13.593,13.581,5.24245068]
[1672850507540,21.98,13.59,13.581,5.24245068]
[1672850507755,75.24,13.589,13.575,5.24245068]
[1672850507961,75.24,13.589,13.572,5.24476779]
[1672850507962,191.7552,13.589,13.572,5.24476779]
[1672850508489,196.28240187,13.589,13.572,5.24476779]
[1672850512811,191.7552,13.589,13.572,5.24476779]
[1672850513129,136.5152,13.589,13.573,38.40573934]
[1672850513447,136.5152,13.589,13.574,5.24554061]
[1672850513645,136.5152,13.589,13.574,5.24515417]
[1672850513967,191.7552,13.589,13.574,5.24515417]
[1672850514496,4.52720187,13.588,13.574,5.24515417]
[1672850514815,4.52720187,13.588,13.572,5.24515417]
[1672850515001,119.0604,13.587,13.572,5.24515417]
[1672850515212,20.0,13.586,13.572,5.24515417]
[1672850516370,55.24,13.589,13.572,43.11047857]
[1672850516575,163.716,13.597,13.573,75.3]
[1672850516908,168.24320187,13.597,13.574,45.79441168]
[1672850517120,168.24320187,13.597,13.575,80.54515417]
[1672850517328,168.24320187,13.597,13.576,5.24476779]
[1672850517539,168.24320187,13.597,13.577,172.4696]
[1672850517749,168.24320187,13.597,13.578,5.2439952]
[1672850517939,75.22,13.593,13.578,5.24360898]
[1672850518157,22.19,13.59,13.574,5.24360898]
[1672850518366,75.24,13.589,13.574,5.24360898]
[1672850518577,75.24,13.589,13.573,5.24515417]
[1672850519104,79.76720187,13.589,13.573,5.24515417]
[1672850519747,75.24,13.589,13.573,5.24515417]
[1672850520060,79.76720187,13.589,13.573,5.24515417]
[1672850520255,59.76720187,13.589,13.573,5.24515417]
[1672850520461,55.22,13.593,13.574,137.65734444]
[1672850520675,55.22,13.593,13.575,5.24515417]
[1672850520909,55.22,13.593,13.575,45.62927769]
[1672850521099,55.22,13.593,13.576,20.0]
[1672850521330,55.22,13.593,13.577,5.24438146]
[1672850521521,55.22,13.593,13.578,108.6082]
[1672850521733,55.22,13.593,13.579,5.24360898]
[1672850522060,55.22,13.593,13.579,5.24322282]
[1672850523829,55.22,13.593,13.579,70.23360768]
[1672850524041,113.2529,13.594,13.579,125.51360768]
[1672850524785,55.2,13.598,13.579,125.51360768]
[1672850524995,113.8485,13.601,13.58,42.18]
[1672850525207,113.8485,13.601,13.581,60.51283673]
[1672850525416,113.8485,13.601,13.582,5.24245068]
[1672850525616,113.8485,13.601,13.583,75.26]
[1672850525828,113.8485,13.601,13.584,5.24167877]
[1672850526158,113.8485,13.601,13.585,186.4117]
[1672850526365,113.8485,13.601,13.586,5.24090708]
[1672850526571,113.8485,13.601,13.587,55.25]
[1672850526780,113.8485,13.601,13.588,5.24013563]
[1672850527116,430.8066,13.608,13.59,21.94]
[1672850527117,312.0,13.608,13.59,21.94]
[1672850527423,312.0,13.608,13.591,75.83147653]
[1672850527735,312.0,13.608,13.592,82.21459429]
[1672850527937,55.14,13.614,13.593,55.22]
[1672850528149,55.14,13.614,13.594,20.0]
[1672850528358,55.14,13.614,13.595,55.21]
[1672850528568,55.12,13.618,13.596,20.0]
[1672850528784,55.12,13.618,13.597,55.21]
[1672850529195,55.12,13.618,13.598,43.56240381]
[1672850529405,55.12,13.618,13.598,65.34358741]
[1672850529615,55.12,13.618,13.599,21.7811836]
[1672850529832,55.12,13.618,13.6,111.4469]
[1672850530049,55.12,13.618,13.6,155.00930381]
[1672850530366,55.12,13.618,13.601,43.56240381]
[1672850531712,55.12,13.618,13.597,55.21]
[1672850531931,22.03,13.61,13.596,20.0]
[1672850532343,26.55720187,13.61,13.596,20.0]
[1672850532988,55.16,13.609,13.596,20.0]
[1672850533418,59.68720187,13.609,13.596,20.0]
[1672850533624,4.52720187,13.609,13.596,20.0]
[1672850533847,22.03,13.61,13.596,20.0]
[1672850534051,4.52720187,13.609,13.593,20.0]
[1672850534267,55.16,13.608,13.589,20.0]
[1672850534457,55.16,13.608,13.59,60.46936439]
[1672850534667,59.68720187,13.608,13.591,20.60147653]
[1672850534989,4.52720187,13.608,13.591,20.60147653]
[1672850535305,4.52720187,13.608,13.592,20.0]
[1672850535627,20.0,13.608,13.591,0.60147653]
[1672850535825,55.16,13.607,13.59,0.60147653]
[1672850536247,24.52720187,13.606,13.589,0.60147653]
[1672850536576,59.69720187,13.605,13.589,5.23936439]
[1672850536981,4.52720187,13.604,13.589,5.23936439]
[1672850542350,55.17,13.605,13.589,5.23936439]
[1672850542563,59.69720187,13.605,13.589,5.23936439]
[1672850542967,4.52720187,13.605,13.59,55.23]
[1672850543183,20.0,13.606,13.591,0.60147653]
[1672850543617,20.0,13.606,13.591,21.7811836]
[1672850544029,20.0,13.606,13.592,0.60147653]
[1672850544654,20.0,13.606,13.592,22.38266013]
[1672850548567,119.1975,13.608,13.593,115.37039636]
[1672850548982,117.4323,13.614,13.594,59.86290174]
[1672850549196,117.4323,13.614,13.595,75.21]
[1672850549410,117.4323,13.614,13.595,135.07290174]
[1672850549723,117.4323,13.614,13.596,59.86290174]
[1672850549920,117.4323,13.614,13.597,55.21]
[1672850550127,117.4323,13.614,13.597,115.07290174]
[1672850550565,117.4323,13.614,13.597,76.9911836]
[1672850550782,117.4323,13.614,13.598,21.7811836]
[1672850551392,429.4323,13.614,13.598,21.7811836]
[1672850551817,429.4323,13.614,13.596,55.21]
[1672850552030,429.4323,13.614,13.597,21.7811836]
[1672850552246,429.4323,13.614,13.598,55.2]
[1672850552654,117.4323,13.614,13.598,76.9811836]
[1672850552865,117.4323,13.614,13.598,21.7811836]
[1672850553287,172.5723,13.614,13.596,55.21]
[1672850553616,172.5723,13.614,13.596,76.9911836]
[1672850554032,117.4323,13.614,13.596,76.9911836]
[1672850555387,172.5723,13.614,13.596,76.9911836]
[1672850555811,484.5723,13.614,13.596,76.9911836]
[1672850556027,484.5723,13.614,13.596,55.21]
[1672850556234,484.5723,13.614,13.595,20.0]
[1672850556432,22.13,13.61,13.595,20.0]
[1672850556642,75.16,13.609,13.595,21.7811836]
[1672850556851,75.16,13.609,13.588,55.24]
[1672850556852,79.68720187,13.609,13.588,55.24]
[1672850557063,225.0309,13.608,13.589,114.60714998]
[1672850557272,75.17,13.607,13.59,5.23936439]
[1672850557503,75.17,13.607,13.59,0.60147653]
[1672850558026,4.52720187,13.606,13.59,0.60147653]
[1672850559209,75.17,13.607,13.59,0.60147653]